Cogmind - Beta 14 *** ADVENTURER MODE // 2025.03.27 @ 00:18:58 Player: Insider Result: Destroyed by WS-8LF(R) with Subdweller Laser Performance ------------- Evolutions (0) 0 Regions Visited (3) 600 Robots Destroyed (12) 60 Value Destroyed (375) 375 Prototype IDs (0) 0 Alien Tech Used (0) 0 Bonus (0) 0 TOTAL SCORE: 1035 Bonus ------- None Cogmind --------- Core Integrity 0/250 Matter 400/400 Energy 147/160 System Corruption 0% Temperature Cool (6) Movement Core (250) Ox4 Location -10/Subcaves Parts ------- > --- POWER (1) -------- Light Nuclear Core > --- PROPULSION (2) --- (None) > --- UTILITY (2) ------ Small Storage Unit Medium Matter Pod > --- WEAPON (2) ------- Beam Rifle > --- INVENTORY (8) ---- Light Ion Engine Improved Ion Engine Heat Sink Improved Heat Sink Sensor Array Signal Interpreter Light Armor Plating Peak State ------------ > --- POWER ------------ Light Nuclear Core > --- PROPULSION ------- Aluminum Leg Aluminum Leg > --- UTILITY ---------- Small Storage Unit Medium Matter Pod > --- WEAPON ----------- Medium Laser Beam Rifle > --- INVENTORY -------- Light Ion Engine Improved Ion Engine Heat Sink Improved Heat Sink Sensor Array Signal Interpreter Light Armor Plating [Rating: 11] Favorites ----------- Power Light Nuclear Core Engine Ion Engine Power Core Light Nuclear Core Propulsion Aluminum Leg Leg Aluminum Leg Utility Small Storage Unit Storage Small Storage Unit Weapon Medium Laser Energy Gun Medium Laser Launcher Grenade Launcher Build | -11 -10 -10 -10 ------- Run | Yrd Mat Min Sub Slots Evolved . | . . . . Power . | . . . . Propulsion . | . . . . Utility . | . . . . Weapon . | . . . . Parts Attached 13 | 6 6 . 1 Power 2 | 1 1 . . Engine 1 | 1 . . . Core 1 | . 1 . . Reactor . | . . . . Propulsion 3 | 2 1 . . Treads . | . . . . Leg 3 | 2 1 . . Wheel . | . . . . Hover . | . . . . Flight . | . . . . Utility 3 | 1 2 . . Device . | . . . . Storage 3 | 1 2 . . Processor . | . . . . Hackware . | . . . . Protection . | . . . . Artifact . | . . . . Weapon 5 | 2 2 . 1 Energy Gun 4 | 2 1 . 1 Energy Cannon . | . . . . Ballistic Gun . | . . . . Ballistic Cannon . | . . . . Launcher 1 | . 1 . . Special Weapon . | . . . . Impact Weapon . | . . . . Slashing Weapon . | . . . . Piercing Weapon . | . . . . Special Melee Weapon . | . . . . Unidentified Prototypes . | . . . . Parts Lost 4 | . . . 4 Power . | . . . . Propulsion 2 | . . . 2 Utility . | . . . . Weapon 2 | . . . 2 Highest Loss Streak 3 | . . . 3 To Critical Strikes . | . . . . Average Slot Usage (%) 96 | . 93 100 95 Engine 4 | . 9 . . Core 9 | . 4 14 14 Leg 27 | . 27 28 26 Storage 25 | . 22 28 28 Energy Gun 18 | . 23 14 15 Launcher 8 | . 4 14 9 Peak Build Rating 11 | 6 9 10 11 Average Rating 8 | 4 7 9 9 On Entrance 6 | . 6 9 10 Naked Turns . | . . . . Heaviest Build 17 | 13 17 17 17 Greatest Support 20 | 20 20 20 20 Greatest Overweight (x) 4 | . 1 . 4 Average Overweight (x) . | . . . . Largest Inventory Capacity 8 | 8 8 8 8 Average Capacity 7 | 6 8 8 8 Most Carried 8 | 5 7 8 8 Average Carried 6 | 2 5 7 7 Final Capacity 8 | 8 8 8 8 Final Carried 8 | 2 6 8 7 Class Distribution -------------------- 100% | Mutant Dominant Class ---------------- Mutant | -10/Materials Mutant | -10/Mines Mutant | -10/Subcaves Resources | -11 -10 -10 -10 ----------- Run | Yrd Mat Min Sub Matter Collected 517 | 230 179 . 108 Remotely . | . . . . Salvage Created 357 | . 184 . 173 Parts 24 | . 13 . 11 Haulers Intercepted . | . . . . Recyclers Shooed . | . . . . Parts Field Recycled . | . . . . Retrieved Matter . | . . . . Parts Self-Destructed 3 | . . . 3 Prevented . | . . . . Kills | -11 -10 -10 -10 ------- Run | Yrd Mat Min Sub Combat Hostiles Destroyed 8 | . 3 . 5 Guns 4 | . 1 . 3 AOE 4 | . 2 . 2 Classes Destroyed 5 | . 4 . 1 Worker 1 | . 1 . . Tunneler 1 | . 1 . . Watcher 2 | . 2 . . Grunt 3 | . 3 . . Subdweller 5 | . . . 5 Best Kill Streak 4 | . 3 . 4 Combat Bots Only 4 | . 2 . 4 Max Kills in Single Turn 2 | . 2 . 2 Gunslinging . | . . . . Exploded 1 | . 1 . 1 Melee . | . . . . Uniques/NPCs Destroyed . | . . . . Combat | -11 -10 -10 -10 -------- Run | Yrd Mat Min Sub Hostile Shots Fired 68 | . 15 . 53 Missed 24 | . 5 . 19 Damage Taken 750 | . 132 . 618 Core 251 | . 17 . 234 Absorbed by Shields . | . . . . Ignored by Resistances 218 | . 44 . 174 Regen/Repaired (Parts) 28 | . 28 . . Core Remaining (%) 100 | 100 . . . Volleys Fired 41 | . 16 . 25 Largest 2 | . 2 . 2 Hottest 106 | . 90 . 106 Shots Fired 67 | . 32 . 35 Gun 57 | . 28 . 29 Cannon . | . . . . Launcher 10 | . 4 . 6 Special . | . . . . Kinetic . | . . . . Thermal 45 | . 16 . 29 Explosive 10 | . 4 . 6 Electromagnetic 12 | . 12 . . Robot Hit Streak 25 | . 14 . 25 Robot Miss Streak 2 | . 2 . 2 Penetration Max . | . . . . Secondary Targets . | . . . . Shots Hit Robots 54 | . 23 . 31 Core Hits 25 | . 12 . 13 Critical Kills . | . . . . Critical Parts Destroyed . | . . . . Critical Strikes 7 | . 1 . 6 Burn 6 | . . . 6 Corrupt 1 | . 1 . . Melee Attacks . | . . . . Impact . | . . . . Slashing . | . . . . Piercing . | . . . . Sneak Attacks . | . . . . Combat Hostiles . | . . . . Follow-up Attacks . | . . . . Damage Inflicted 1169 | . 457 . 712 Guns 613 | . 269 . 344 Cannons . | . . . . Explosions 556 | . 188 . 368 Melee . | . . . . Ramming . | . . . . Kinetic . | . . . . Thermal 470 | . 126 . 344 Explosive 556 | . 188 . 368 Electromagnetic 143 | . 143 . . Impact . | . . . . Slashing . | . . . . Piercing . | . . . . Highest Corruption . | . . . . Average Corruption . | . . . . Corruption Purged . | . . . . Corruption Blocked . | . . . . Overload Shots . | . . . . Overflow Damage . | . . . . Projectiles . | . . . . Explosions . | . . . . Melee . | . . . . Knockbacks . | . . . . Impact . | . . . . Kinetic . | . . . . Secondary . | . . . . Self-Inflicted Damage . | . . . . Shots . | . . . . Rammed . | . . . . Targets Rammed . | . . . . Kicked . | . . . . Crushed . | . . . . Highest Temperature 162 | . 162 . 21 Average Temperature 56 | . 64 . 11 Received Heat Transfer 249 | . 60 . 189 Siege Activations . | . . . . Robots Corrupted . | . . . . Combat Hostiles . | . . . . Parts Fried . | . . . . Impact Corruptions . | . . . . Robots Melted . | . . . . Combat Hostiles . | . . . . Parts Melted 2 | . 1 . 1 Heat Transferred 1717 | . 311 . 1406 Parts Sabotaged . | . . . . Parts Stolen . | . . . . Parts Stripped . | . . . . Power Chain Reactions . | . . . . Alert | -11 -10 -10 -10 ------- Run | Yrd Mat Min Sub Peak Influence 99 | . 99 41 . Initial 26 | . . 26 . Average 41 | . 49 39 . Maximum Alert Level . | . . . . Low Security (%) 100 | 100 100 100 . Level 1 . | . . . . Level 2 . | . . . . Level 3 . | . . . . Level 4 . | . . . . Level 5 . | . . . . High Security . | . . . . Max Security . | . . . . Squads Dispatched 1 | . 1 . . Investigation 1 | . 1 . . Extermination . | . . . . Reinforcement . | . . . . Assault . | . . . . Garrison . | . . . . Intercept . | . . . . Searches Triggered . | . . . . Construction Impeded . | . . . . Haulers Reinforced . | . . . . Active Scanning Responses . | . . . . Cargo Convoy Interrupts . | . . . . Stealth | -11 -10 -10 -10 --------- Run | Yrd Mat Min Sub Distress Signals 1 | . 1 . . Communications Jammed . | . . . . Distress Signals . | . . . . Times Spotted 16 | . 5 1 10 Peak Tracking Total 4 | . 2 1 4 Tactical Retreats . | . . . . Traps | -11 -10 -10 -10 ------- Run | Yrd Mat Min Sub Traps Triggered 2 | . 1 . 1 Indirectly . | . . . . Trap Hack Attempts . | . . . . Triggered . | . . . . Disarmed . | . . . . Reprogrammed . | . . . . Reused . | . . . . Traps Extracted . | . . . . Installed . | . . . . Triggered . | . . . . Machines | -11 -10 -10 -10 ---------- Run | Yrd Mat Min Sub Machines Disabled 2 | . 2 . . Max in Single Turn 2 | . 2 . . Machines Repaired . | . . . . Machines Dismantled . | . . . . Machines Sabotaged . | . . . . Overloaded Fab Kills . | . . . . Hacking | -11 -10 -10 -10 --------- Run | Yrd Mat Min Sub Machines Accessed 3 | . 3 . . Terminals 1 | . 1 . . Fabricators . | . . . . Repair Stations 1 | . 1 . . Recycling Units 1 | . 1 . . Scanalyzers . | . . . . Garrison Access . | . . . . Total Hacks 8 | . 8 . . Successful 6 | . 6 . . Failed 2 | . 2 . . Catastrophic 1 | . 1 . . Database Lockouts . | . . . . Manual . | . . . . Terminals 1 | . 1 . . Fabricators . | . . . . Repair Stations 4 | . 4 . . Recycling Units 3 | . 3 . . Scanalyzers . | . . . . Garrison Access . | . . . . Terminal Hacks 1 | . 1 . . Record 1 | . 1 . . Fabricator Hacks . | . . . . Repair Station Hacks 2 | . 2 . . Scan Component 1 | . 1 . . Repair 1 | . 1 . . Recycling Unit Hacks 3 | . 3 . . Recycle Component 1 | . 1 . . Process 1 | . 1 . . Retrieve Matter 1 | . 1 . . Scanalyzer . | . . . . Garrison Access Hacks . | . . . . Unauthorized Hacks . | . . . . Terminals . | . . . . Fabricators . | . . . . Repair Stations . | . . . . Recycling Units . | . . . . Scanalyzers . | . . . . Garrison Access . | . . . . Data Cores Recovered . | . . . . Used . | . . . . Hacking Detections 2 | . 2 . . Full Trace Events 1 | . 1 . . Feedback Events . | . . . . Feedback Blocked . | . . . . Robot Schematics Acquired . | . . . . Robots Built . | . . . . Authchips . | . . . . Time . | . . . . Total Robot Build Rating . | . . . . Part Schematics Acquired . | . . . . Parts Built . | . . . . Authchips . | . . . . Time . | . . . . Total Part Build Rating . | . . . . Parts Repaired 1 | . 1 . . Time 13 | . 13 . . Parts Recycled 1 | . 1 . . Recycled Matter 33 | . 33 . . Retrieved Matter 33 | . 33 . . Retrieved Components . | . . . . Parts Scanalyzed . | . . . . Part Schematics Acquired . | . . . . Parts Damaged . | . . . . Bothacking | -11 -10 -10 -10 ------------ Run | Yrd Mat Min Sub Used RIF Installer . | . . . . Robots Hacked . | . . . . Non-combat . | . . . . Combat . | . . . . Robot Hacks Applied . | . . . . Relay Couplers Released . | . . . . Fabnet Peak Effective % . | . . . . Robots Rewired . | . . . . Allies Hacked . | . . . . Hacks Repelled . | . . . . Allies | -11 -10 -10 -10 -------- Run | Yrd Mat Min Sub Total Allies . | . . . . Largest Group . | . . . . Highest-Rated Group . | . . . . Highest-Rated Ally . | . . . . Total Orders . | . . . . Ally Attacks . | . . . . Total Damage . | . . . . Kills . | . . . . Allies Corrupted . | . . . . Allies Melted . | . . . . Intel | -11 -10 -10 -10 ------- Run | Yrd Mat Min Sub Robot Analysis Total . | . . . . Derelict Logs Recovered 1 | . . 1 . Drone Launches . | . . . . Drone Recoveries . | . . . . Exploration | -11 -10 -10 -10 ------------- Run | Yrd Mat Min Sub Turns Passed 1225 | 65 506 414 240 Spaces Moved 894 | 50 355 343 146 Core 12 | 11 . . 1 Treads . | . . . . Legs 882 | 39 355 343 145 Wheels . | . . . . Hover . | . . . . Flight . | . . . . Fastest Speed 50 | 50 120 120 120 Average Speed 120 | 104 122 120 121 Slowest Speed 250 | 120 190 120 250 Overloaded Moves . | . . . . Propulsion Burnouts . | . . . . Robots Hopped . | . . . . Cave-ins Triggered . | . . . . Exploration Rate (%) 29 | 4 55 44 15 Regions Visited 3 Branch Regions 2 Pre-discovered Areas 2 | . . 1 1 Known Exits Taken . | . . . . Unknown Exits Taken 3 | 1 1 1 . Scrap Searched 1 | . . . 1 Spaces Dug . | . . . . Terrain Destroyed 40 | . 6 . 34 Melee . | . . . . Projectile . | . . . . AOE 40 | . 6 . 34 Terrain Rammed . | . . . . Walls Destroyed . | . . . . Machines Disabled . | . . . . Actions | -11 -10 -10 -10 --------- Run | Yrd Mat Min Sub Total 977 | 62 394 346 175 Wait 1 | . 1 . . Move 891 | 49 354 342 146 Hop . | . . . . Pick Up 22 | 7 12 3 . Fast Attach 1 | 1 . . . Attach 8 | 5 2 . 1 Detach . | . . . . Swap 4 | . 4 . . Drop 6 | . 5 1 . Fire 41 | . 16 . 25 Melee . | . . . . Ram . | . . . . Kick . | . . . . Crush . | . . . . Escape Stasis . | . . . . Rewire 3 | . . . 3 Trap . | . . . . Miscellaneous . | . . . . Route ------- -11/Scrapyard -10/Materials (discovered 3 exits: [*Mat] / [*Min x2]) -10/Mines (discovered 2 exits: [*Mat] / [*Sub]) -10/Subcaves History --------- Turn | Location | Event 2 | -11/Scrapyard | Met Revision 17 5 | -11/Scrapyard | Discovered new exit (range 15) 66 | -11/Scrapyard | Entered Materials 209 | -10/Materials | Repaired Aluminum Leg 293 | -10/Materials | Discovered new exit (range 15) 318 | -10/Materials | Build established: Mutant 323 | -10/Materials | Discovered new exit (range 7) 365 | -10/Materials | Discovered new exit (range 15) 572 | -10/Materials | Entered Mines 582 | -10/Mines | Joined a pair of Derelicts in attacking an 0b10 outpost 653 | -10/Mines | Learned Materials terminal intel 761 | -10/Mines | Discovered new exit (range 6) 763 | -10/Mines | Learned location of Storage (-9) 806 | -10/Mines | Discovered new exit (range 8) 924 | -10/Mines | Found a hidden stash of uninstalled traps 986 | -10/Mines | Entered Subcaves 1034 | -10/Subcaves | Ambushed by swarm of Subdwellers 1034 | -10/Subcaves | Ambushed by Subdwellers from Twisted Machinery 1056 | -10/Subcaves | Learned location of Zion (-7) 1056 | -10/Subcaves | Met a Zionite searching for "candidates" 1110 | -10/Subcaves | Lost 6 allies 1196 | -10/Subcaves | A Subdweller sparked back to life 1196 | -10/Subcaves | A Subdweller sparked back to life 1196 | -10/Subcaves | A Subdweller sparked back to life 1197 | -10/Subcaves | Core integrity fell below 50% 1218 | -10/Subcaves | Core integrity fell below 20% 1226 | -10/Subcaves | Destroyed by WS-8LF(R) with Subdweller Laser Last Messages --------------- 01158_ Triggered Shrapnel Trap. 01158_ An expanding cloud of shrapnel blasts out in all directions. 01158_ Grenade Launcher destroyed. 01177_ IL-KZK(R) destroyed. 01181_ Acquired 10 matter. 01193_ Attempting to rewire IH-DE2(R). 01193_ IH-DE2(R) is broken beyond repair. 01194_ Attempting to rewire IH-DE2(R). 01194_ IH-DE2(R) is broken beyond repair. 01195_ Attempting to rewire IH-DE2(R). 01195_ IH-DE2(R) is broken beyond repair. 01196_ IH-DE2(R) creaks and sparks as it begins to move. 01196_ WS-8LF(R) creaks and sparks as it begins to move. 01196_ 9R-9D8(R) creaks and sparks as it begins to move. 01205_ Med. Laser destroyed. 01207_ IH-DE2(R) destroyed. 01209_ Aluminum Leg destroyed. 01217_ WS-8LF(R) affixes Scrap Shield Fragment to Scrap Shield. 01222_ 9R-9D8(R) suffers critical hit (Burn). 01225_ 9R-9D8(R) overheating. Map ----- +----------------------------------------------------+ | | | ?????????????????????????????????????????????????? | | ?????????????????????????????????????????????????? | | ?????????????????????????????????????????????????? | | ?????????????????????????????????????????????????? | | ?????????????????????????????????????????????????? | | ?????????????????????????????????????????????????? | | ?????????????????????????????????????????????????? | | ?????????????????????????????????????????????????? | | ?????????????????????????????????????????????????? | | ?????????????????????????????????????????????????? | | ?????????????????????????????????????????????????? | | ?????????????????????????????????????????????????? | | ?????????????????????????????????????????????????? | | ?????????????????????????????????????????????????? | | ????????#####????????????????????????????????????? | | ????????# ??#########????????????????????????? | | ????????# ### "" ###??????????????????????? | | ????????# ^ ;;"" #??????????????????????? | | ????????# #??????????????????????? | | ????????#^ &! ## #??????????????????????? | | ????# =%## #####???????????????????? | | ???# ###" ;;&* ## #???????????????????? | | ???# ????## ^### #???????????????????? | | ???# ????????# #?## R ##?###???????????????? | | ??????????????# ??##R @!<####%##??????????????? | | ??????????????#" ???# < &&&## !#!#??????????????? | | ??????????????" #??## < %# ### ##?????????????? | | ?????????????### ##???# <&&#&# ### #?????????????? | | ???????????????###????###<#### #?# #?????????????? | | ???????????????????????????????#?# #?????????????? | | ?????????????????????????????????# ##????????????? | | ?????????????????????????????????## ##???????????? | | ??????????????????????????????????# ##??????????? | | ??????????????????????????????????# #??????????? | | ?????????????????????????????????## ##??????????? | | ?????????????????????????????????# #???????????? | | ?????????????????????????????????# #???????????? | | ?????????????????????????????????## ##??????????? | | ???????????????????????????????### ##?????????? | | ????????????????????????????#### ####??????? | | ????????????????????????????# ##?????? | | ???????????????????????????## % #?????? | | ???????????????????????????# #?????? | | ???????????????????????????# #?????? | | ???????????????????????????# #?????? | | ????????????????????????# # #?????? | | ???????????????????????# %* #?????? | | ???????????????????????# ## ????? | | ????????????????????????# ## ?## ## ### | +----------------------------------------------------+ Best States ------------- Heat Dissipation 25 Energy Generation 14 Energy Capacity 250 Matter Stores 400 Matter Capacity 400 Sight Range 16 Terrain Scan Density 10 Resistance: KI 20 Resistance: TH 20 Resistance: EX 20 Resistance: EM 20 Resistance: I 20 Resistance: S 20 Resistance: P 20 Evasion (%) 55 Offensive Hacking 10 Item Schematics ----------------- None Robot Schematics ------------------ None Fabricated ------------ Nothing Alien Tech Used ----------------- None Achievements -------------- One Hack Too Far Challenges ------------ None Game ------ Seed SignalCatalystNanosword Manual? 0 Play Time 00:15:25 Cumulative 2.3 hours Start 2025.03.27 @ 00:03:30 End 2025.03.27 @ 00:18:58 Sessions 1 Manual Loads 0 Difficulty Adventurer Special Mode None Game No. 5 Rogue 0 Adventurer 5 Explorer 0 Win Type - Total 0 Types 0/0/0/0/0/0/0/0/0 Lore% 0 Gallery% 7 Achievement% 6 Wizard Run 0 Options --------- Layout 0 ASCII 0 Keyboard 0 Movement Mouse Keybinds 0 Fullscreen 2 Font 18/SmallcapsGlow Map View 183x50 Zoom Use 0% Tactical HUD 1 Map Filters NONE Filters NONE Steam 1 RUN: 6302448e-8b6d-4dab-a428-87c5e1a64dd5